bitfinex/quotes_ETHUSD_20251118
["timestamp","ask_amount","ask_price","bid_price","bid_amount"]
[1763434098364,0.002,3039.9,3039.4,2.28357403]
[1763434098611,0.002,3039.9,3039.1,2.89666924]
[1763434098780,0.002,3039.9,3039.3,2.89666924]
[1763434098964,0.002,3039.9,3039.4,0.28966692]
[1763434099165,0.00017176,3039.5,3039.4,0.30620606]
[1763434099403,0.002,3039.9,3039.4,0.30620606]
[1763434099599,0.002,3039.9,3039.8,2.88700751]
[1763434100101,0.002,3039.9,3039.4,4.04166971]
[1763434100403,0.002,3039.9,3039.6,4.04166971]
[1763434100588,0.002,3039.9,3039.7,0.01653102]
[1763434100898,0.002,3039.9,3039.8,4.0410394]
[1763434101096,0.002,3039.9,3039.8,0.45021394]
[1763434101600,0.002,3039.9,3039.8,0.91131394]
[1763434101905,0.002,3039.9,3039.8,2.88949688]
[1763434102105,0.002,3039.9,3039.4,2.88949688]
[1763434102399,0.44662512,3039.8,3039.6,1.73530495]
[1763434102600,0.405504,3039.8,3039.3,0.97610903]
[1763434102801,0.405504,3039.6,3039.3,0.97610903]
[1763434103001,0.405504,3039.4,3038.4,2.88949688]
[1763434103206,0.405504,3039.4,3038.0,4.0410394]
[1763434103207,0.405504,3039.2,3038.1,2.88949688]
[1763434103370,0.04112789,3039.3,3038.1,2.88949688]
[1763434103371,0.405504,3039.0,3038.1,2.88949688]
[1763434103790,0.862604,3039.0,3038.1,2.88949688]
[1763434103990,0.862604,3039.0,3038.2,0.28894969]
[1763434104293,0.405504,3038.8,3038.2,3.17844657]
[1763434104829,0.4571,3038.8,3038.2,0.28894969]
[1763434105195,0.4571,3038.8,3038.2,3.17844657]
[1763434106292,0.4571,3039.7,3038.3,0.1979]
[1763434106494,0.002,3039.9,3038.3,0.1979]
[1763434106495,0.002,3039.9,3038.7,2.88949688]
[1763434106742,0.4591,3039.9,3038.9,2.88949688]
[1763434107229,0.4591,3039.9,3039.0,2.88949688]
[1763434107795,0.405504,3039.8,3039.0,2.88949688]
[1763434108129,0.405504,3039.8,3039.1,0.28894969]
[1763434108291,0.405504,3039.8,3039.4,2.31262779]
[1763434108795,0.4571,3039.7,3039.4,2.31262779]
[1763434109617,0.4571,3039.7,3039.3,2.31262779]
[1763434110018,0.4571,3039.7,3039.1,2.31262779]
[1763434111089,0.4571,3039.7,3039.1,2.54389057]
[1763434111317,0.4571,3039.7,3039.3,2.31262779]
[1763434111558,0.002,3039.9,3039.4,2.31262779]
[1763434111857,0.002,3039.9,3039.5,2.31262779]
[1763434112219,0.4591,3039.9,3039.5,2.31262779]
[1763434112483,0.405504,3039.8,3039.5,2.31262779]
[1763434112851,0.4571,3039.7,3039.5,2.31262779]
[1763434113154,0.405504,3039.6,3039.3,2.31262779]
[1763434113753,0.4571,3039.5,3039.2,2.31262779]
[1763434114151,0.405504,3039.4,3039.2,2.31262779]
[1763434114353,0.405504,3039.4,3039.3,2.31262779]
[1763434114718,0.862604,3039.4,3039.3,2.31262779]
[1763434114922,0.405504,3039.3,3038.8,2.31262779]
[1763434115146,0.405504,3039.3,3038.6,2.31262779]
[1763434115147,0.405504,3038.8,3038.6,2.31262779]
[1763434115347,0.405504,3038.8,3038.5,2.31262779]
[1763434115619,0.405504,3038.6,3038.4,2.31262779]
[1763434115962,0.405504,3038.6,3038.2,2.31262779]
[1763434116143,0.405504,3038.4,3038.2,2.31262779]
[1763434116456,0.405504,3038.4,3037.8,2.88949688]
[1763434116457,0.405504,3038.2,3038.1,2.31262779]
[1763434116656,0.44664542,3038.3,3037.8,2.88949688]
[1763434116657,0.529904,3037.9,3037.8,2.31262779]
[1763434116845,0.19,3038.2,3037.8,2.31262779]
[1763434117048,0.405504,3038.1,3037.8,2.31262779]
[1763434117221,0.405504,3038.1,3037.9,2.31262779]
[1763434117422,0.405504,3038.1,3038.0,2.31262779]
[1763434118060,0.19,3038.2,3038.0,2.31262779]
[1763434118261,0.19,3038.2,3037.9,2.31262779]
[1763434118422,0.405504,3038.8,3037.9,0.23126278]
[1763434118618,0.2,3038.9,3038.5,2.31805234]
[1763434118850,0.2,3038.9,3037.7,4.0410394]
[1763434118851,0.4921,3038.8,3038.4,2.31805234]
[1763434119281,0.2,3038.9,3038.5,2.31805234]
[1763434119482,0.6821,3039.2,3038.5,2.31805234]
[1763434119696,0.4921,3039.8,3038.6,2.31805234]
[1763434119852,0.002,3039.9,3039.2,2.31805234]
[1763434120057,0.002,3039.9,3038.7,0.29581358]
[1763434120058,0.04311977,3039.9,3039.4,2.31805234]
[1763434120280,0.4941,3039.9,3039.4,2.31805234]
[1763434120495,0.4941,3039.9,3039.5,2.31805234]
[1763434120858,0.405504,3039.8,3039.5,2.31805234]
[1763434121061,0.4941,3039.9,3039.5,2.31805234]
[1763434121367,0.407504,3039.9,3039.5,2.31805234]
[1763434121591,0.4921,3039.8,3039.4,2.31805234]
[1763434121774,0.405504,3039.7,3039.4,2.31805234]
[1763434121973,0.002,3039.9,3039.5,2.31805234]
[1763434122160,0.407504,3039.9,3039.5,2.31805234]
[1763434122672,0.899604,3039.9,3039.5,2.31805234]
[1763434124063,0.407504,3039.9,3039.4,2.31805234]
[1763434124401,0.407504,3039.9,3039.6,2.31805234]
[1763434124695,0.407504,3039.9,3039.5,2.31805234]
[1763434124896,0.899604,3039.9,3039.5,2.31805234]
[1763434126096,0.899604,3039.9,3038.9,0.662]
[1763434126097,0.405504,3039.7,3039.3,2.31805234]
[1763434126320,0.405504,3039.5,3039.3,2.31805234]
[1763434126716,0.4921,3039.5,3039.3,2.31805234]
[1763434126897,0.4921,3039.5,3039.2,2.31805234]
[1763434127428,0.407504,3039.9,3039.3,2.31805234]
[1763434127632,0.002,3039.9,3039.4,2.31805234]
[1763434127812,0.002,3039.9,3039.7,2.31805234]
[1763434128014,0.002,3039.9,3039.3,3.36409688]
[1763434128015,0.002,3039.9,3039.8,2.31805234]
[1763434128324,0.002,3039.9,3039.3,3.36409688]
[1763434128325,0.002,3039.9,3039.7,2.31805234]
[1763434128511,0.002,3039.9,3039.8,2.31805234]
[1763434128698,0.002,3039.9,3039.7,2.31805234]
[1763434129435,0.4941,3039.9,3039.7,2.31805234]
[1763434129629,0.4941,3039.9,3039.6,2.31805234]
[1763434129838,0.002,3039.9,3039.7,2.31805234]
[1763434130389,0.002,3039.9,3039.8,2.31805234]
[1763434130600,0.002,3039.9,3039.7,2.31805234]
[1763434131324,0.002,3039.9,3039.8,2.31805234]
[1763434132306,0.002,3039.9,3039.1,0.4746]
[1763434132307,0.002,3039.9,3039.5,2.88949688]
[1763434132509,0.002,3039.9,3039.6,2.88949688]
[1763434133007,0.002,3039.9,3039.7,3.36409688]
[1763434133216,0.002,3039.9,3039.7,2.88949688]
[1763434133541,0.002,3039.9,3039.8,0.4746]
[1763434134052,0.002,3039.9,3039.7,2.88949688]
[1763434134195,0.002,3039.9,3039.7,3.20734154]
[1763434136337,0.002,3039.9,3039.7,2.88949688]
[1763434137121,0.002,3039.9,3039.5,2.88949688]
[1763434137930,0.002,3039.9,3039.6,0.4746]
[1763434138245,0.00012545,3039.9,3039.6,0.4746]
[1763434138623,0.00012545,3039.9,3039.7,4.0410394]
[1763434138825,0.00012545,3039.9,3039.8,0.45156394]
[1763434139142,0.00012545,3039.9,3039.8,0.92616394]
[1763434139900,0.00012545,3039.9,3039.8,0.45156394]
[1763434140118,0.00012545,3039.9,3039.6,4.0410394]
[1763434140315,0.00012545,3039.9,3039.5,4.0410394]
[1763434140713,0.00012545,3039.9,3039.6,4.0410394]
[1763434140943,0.00012545,3039.9,3039.8,2.8989206]
[1763434141141,0.00012545,3039.9,3038.9,5.72456947]
[1763434141142,0.00012545,3039.9,3039.7,4.5156394]
[1763434141353,0.00012545,3039.9,3039.8,0.45156394]
[1763434141665,0.002,3040.3,3039.9,0.405504]
[1763434141848,0.002,3040.6,3039.9,0.405504]
[1763434141849,0.002,3040.6,3040.1,0.1874]
[1763434142358,0.002,3040.6,3040.5,4.04518299]
[1763434142721,0.002,3040.6,3040.5,0.4746]
[1763434143621,0.002,3040.6,3040.5,4.04020201]
[1763434143848,0.002,3040.6,3040.5,7.80624396]
[1763434144036,0.002,3040.6,3040.5,2.88742175]
[1763434144240,0.002,3040.6,3040.3,2.88742175]
[1763434144641,0.002,3040.6,3040.1,2.88742175]
[1763434144840,0.002,3040.6,3040.2,3.36202175]
[1763434145260,0.002,3040.6,3040.2,2.88742175]
[1763434145558,0.002,3040.6,3040.5,2.31105259]
[1763434145959,0.002,3040.6,3040.3,2.31105259]
[1763434146144,0.002,3040.6,3040.2,2.31105259]
[1763434146145,0.4837,3040.5,3040.2,2.31105259]
[1763434146353,0.002,3040.6,3040.3,2.31105259]
[1763434146928,0.002,3040.6,3040.4,2.31105259]
[1763434147232,0.002,3040.6,3040.3,2.31105259]
[1763434147566,0.002,3040.6,3040.4,2.31105259]
[1763434148051,0.4837,3040.5,3040.4,2.31105259]
[1763434148248,0.4837,3040.5,3040.3,2.31105259]
[1763434148463,0.002,3040.6,3040.0,2.88742175]
[1763434148763,0.002,3040.6,3040.4,2.31526734]
[1763434148984,0.002,3040.6,3040.5,2.31526734]
[1763434149189,0.002,3040.6,3040.2,0.01651101]
[1763434149359,0.002,3040.6,3040.3,0.4687]
[1763434149360,0.00012611,3040.6,3040.3,0.4687]
[1763434149542,0.48382611,3040.6,3040.2,4.04020201]
[1763434149749,0.00012611,3040.6,3040.4,2.89405606]
[1763434150048,0.4837,3040.5,3040.2,2.89405606]
[1763434150261,0.4837,3040.5,3040.4,2.31592728]
[1763434150586,0.4837,3040.5,3039.4,0.1937]
[1763434150587,0.00012611,3040.6,3040.1,2.89405606]
[1763434150752,0.00012611,3040.6,3040.5,2.31568644]
[1763434151272,0.00012611,3040.6,3040.2,0.28940561]
[1763434151587,0.00012611,3040.6,3040.5,2.31519218]
[1763434151759,0.00012611,3040.6,3040.4,2.89405606]
[1763434152158,0.00012611,3040.6,3040.3,2.89405606]
[1763434152357,0.00012611,3040.6,3040.4,0.31834617]
[1763434152596,0.00012611,3040.6,3040.4,0.78704617]
[1763434152774,0.00012611,3040.6,3040.2,4.32960762]
[1763434152948,0.00012611,3040.6,3040.5,2.89135913]
[1763434153460,0.00012611,3040.6,3040.5,2.89149858]
[1763434153991,0.00012611,3040.6,3040.5,3.36019858]
[1763434154150,0.00012611,3040.6,3040.5,0.4687]
[1763434154894,0.00012611,3040.6,3040.5,4.50890201]
[1763434155188,0.00012611,3040.6,3040.5,0.9195902]
[1763434155551,0.00012611,3040.6,3040.5,4.95979221]
[1763434155983,0.00012611,3040.6,3040.5,0.9195902]
[1763434156428,0.00012611,3040.6,3040.5,4.49109221]
[1763434156823,0.00012611,3040.6,3040.2,0.28940561]
[1763434157027,0.00012611,3040.6,3040.5,2.89149361]
[1763434157233,0.00012611,3040.6,3040.5,2.89165719]
[1763434157530,0.00012611,3040.6,3040.3,2.89165719]
[1763434157531,0.48382611,3040.6,3040.3,2.89165719]
[1763434157703,0.90699264,3040.5,3040.3,2.89165719]
[1763434157905,0.90699264,3040.5,3040.1,0.001]
[1763434157906,0.4837,3040.5,3040.2,2.89165719]
[1763434158229,0.90711875,3040.6,3040.3,2.31601523]
[1763434158528,0.405504,3040.5,3040.3,2.31601523]
[1763434158731,0.405504,3040.5,3040.1,0.001]
[1763434159036,0.405504,3039.8,3039.5,0.001]
[1763434159236,6.76305174,3039.6,3039.1,2.89165719]
[1763434159532,0.405504,3039.4,3038.8,0.001]
[1763434159716,1.42429664,3038.9,3038.8,0.001]
[1763434160120,1.95542994,3038.9,3038.8,0.001]
[1763434160320,1.95542994,3038.9,3038.4,0.001]
[1763434160499,0.405504,3038.7,3038.4,0.001]
[1763434160900,1.05992594,3038.9,3038.4,0.001]
[1763434160901,0.405504,3038.5,3038.4,0.001]
[1763434161339,0.895504,3038.5,3038.4,0.001]
[1763434161739,1.01879264,3038.9,3038.4,0.001]
[1763434161928,1.50879264,3038.9,3038.4,0.001]
[1763434162305,0.49,3038.8,3038.4,0.001]
[1763434162751,1.01879264,3038.9,3038.4,0.001]
[1763434163150,0.90699264,3038.9,3038.4,0.001]
[1763434163462,6.35754774,3039.6,3038.4,0.4773]
[1763434163762,0.49,3039.8,3038.5,2.89165719]
[1763434163939,0.405504,3039.7,3038.6,0.33689572]
[1763434164262,0.49,3039.8,3038.6,0.81319572]
[1763434164465,0.1897,3039.9,3038.6,0.81319572]
[1763434164661,0.72081977,3039.9,3038.6,3.70485291]
[1763434164847,0.90699264,3039.4,3038.6,3.70485291]
[1763434165054,0.90699264,3039.4,3038.7,0.37048529]
[1763434165252,0.94811917,3039.4,3038.7,0.37048529]
[1763434165423,0.94811917,3039.4,3038.4,0.001]
[1763434165424,0.90699264,3038.9,3038.4,0.001]
[1763434165936,1.09669264,3038.9,3038.4,0.001]
[1763434166130,0.90699264,3038.9,3038.4,0.001]
[1763434166330,1.09669264,3038.9,3038.4,0.001]
[1763434166747,0.49,3038.8,3038.4,0.001]
[1763434166927,7.20105064,3038.5,3038.4,0.001]
[1763434167769,0.90699264,3038.5,3038.4,0.001]
[1763434169282,7.20105064,3038.5,3038.4,0.001]
[1763434170744,7.69105064,3038.5,3038.4,0.001]
[1763434171055,8.09655464,3038.5,3038.4,0.001]
[1763434171857,0.90699264,3038.5,3038.4,0.001]
[1763434174534,7.69105064,3038.5,3038.4,0.001]
[1763434174977,7.20105064,3038.5,3038.4,0.001]
[1763434176338,0.90699264,3038.5,3038.4,0.001]
[1763434176535,0.002,3038.9,3038.4,0.4737]
[1763434176740,0.002,3038.9,3038.4,2.78165661]
[1763434176935,0.90899264,3038.9,3038.5,0.75086566]
[1763434177171,0.002,3038.9,3038.5,0.75086566]
[1763434177338,0.002,3038.9,3038.8,2.30795661]
[1763434177538,0.002,3038.9,3038.7,2.89165719]
[1763434177773,0.002,3038.9,3038.8,0.01655645]
[1763434178079,0.00017794,3038.9,3038.8,3.719005]
[1763434178487,0.002,3039.3,3038.8,0.81079136]
[1763434178655,0.002,3039.3,3039.2,3.01370065]
[1763434178980,0.002,3039.3,3039.2,3.01317948]
[1763434179183,0.002,3039.3,3039.2,3.48587948]
[1763434179382,0.002,3039.3,3039.2,0.95318795]
[1763434179672,0.002,3039.3,3039.2,0.6046]
[1763434181689,0.002,3039.3,3039.2,3.48826894]
[1763434181885,0.002,3039.3,3039.2,0.6046]
[1763434182559,0.002,3039.3,3039.2,0.62114455]
[1763434183411,0.002,3039.3,3039.2,0.6046]
[1763434183572,0.002,3039.3,3039.2,1.0690802]
[1763434184709,0.002,3039.3,3039.2,1.5473802]
[1763434186004,0.002,3039.3,3039.2,3.9610043]
[1763434186206,0.002,3039.3,3039.2,4.4337043]
[1763434186514,0.002,3039.3,3039.2,1.5473802]
[1763434186685,0.002,3039.3,3039.2,1.0829]
[1763434187788,0.002,3039.3,3039.1,0.1962]
[1763434188117,0.00017797,3039.3,3039.2,0.951]
[1763434188417,0.00017797,3039.3,3039.2,0.96754455]
[1763434189215,0.00017797,3039.3,3039.2,0.951]
[1763434189374,0.00017797,3039.3,3039.2,1.48628475]
[1763434189574,0.00017797,3039.3,3039.2,5.52648676]
[1763434190096,0.002,3039.7,3039.2,1.4697402]
[1763434190319,0.002,3039.7,3039.5,4.52224937]
[1763434190845,0.002,3039.7,3039.5,4.99494937]
[1763434192630,0.002,3039.7,3039.4,4.04394937]
[1763434192996,0.002,3039.7,3039.2,4.04394937]
[1763434193233,0.002,3039.7,3039.3,0.47128494]
[1763434193738,0.04312247,3039.7,3039.4,2.88867913]
[1763434193889,0.002,3039.7,3039.3,2.88867913]
[1763434194205,1.80879664,3039.5,3039.3,2.31235638]
[1763434194407,0.405504,3039.2,3038.7,4.04394937]
[1763434194731,0.4525,3039.4,3038.4,0.4737]
[1763434194888,0.4923,3039.5,3038.4,0.4737]
[1763434195088,0.4923,3039.5,3038.4,0.4544208]
[1763434195290,0.90699264,3039.2,3038.4,0.4544208]
[1763434195520,0.90699264,3039.2,3038.4,0.001]
[1763434195725,0.4963,3039.1,3038.4,0.001]
[1763434196089,0.90699264,3039.2,3038.4,0.001]
[1763434196296,1.40329264,3039.2,3038.4,0.001]
[1763434197516,0.90699264,3039.2,3038.4,0.001]
[1763434197736,1.40329264,3039.2,3038.4,0.001]
[1763434197947,0.4963,3039.1,3038.4,0.001]
[1763434199053,0.90699264,3039.2,3038.4,0.001]
[1763434199710,0.002,3039.6,3038.5,0.4727]
[1763434199911,0.4963,3039.5,3038.5,0.4727]
[1763434200241,0.4963,3039.5,3038.4,0.001]
[1763434200445,0.002,3039.6,3038.5,0.40449494]
[1763434200618,0.002,3039.6,3038.4,0.49025432]
[1763434200823,0.002,3039.6,3038.4,0.4737]
[1763434200824,0.90899264,3039.6,3038.4,0.4737]
[1763434201236,0.90699264,3039.1,3038.4,0.001]
[1763434201454,0.4963,3039.0,3038.4,0.001]
[1763434201626,0.1865,3038.9,3038.4,0.001]
[1763434202022,0.405504,3039.4,3038.4,0.4737]
[1763434202225,0.1865,3038.9,3038.4,0.001]
[1763434202424,0.4963,3039.4,3038.4,0.001]
[1763434202627,0.90699264,3039.1,3038.4,0.001]
[1763434203109,0.90899264,3039.6,3038.4,0.001]
[1763434203314,0.4963,3039.5,3038.6,2.89629248]
[1763434203612,0.4963,3039.5,3038.7,2.89629248]
[1763434203613,0.405504,3039.4,3038.7,2.89629248]
[1763434203814,0.5478,3038.5,3038.4,2.89729248]
[1763434204047,0.90699264,3039.0,3038.4,0.001]
[1763434204276,0.405504,3039.2,3038.4,2.89729248]
[1763434204571,0.4963,3039.3,3039.0,2.31826659]
[1763434204719,0.4963,3039.2,3039.0,2.31826659]
[1763434205057,1.26559264,3039.1,3039.0,2.31826659]
[1763434205240,0.4949,3039.4,3038.5,2.89629248]
[1763434205450,1.40189264,3039.4,3039.1,2.31947866]
[1763434205626,0.405504,3039.3,3039.1,2.31947866]
[1763434205834,0.36,3039.2,3039.1,2.31947866]
[1763434206419,0.8516,3039.2,3039.0,2.31947866]
[1763434206629,0.4916,3039.2,3039.0,2.31947866]
[1763434206931,0.90699264,3039.4,3038.8,2.31947866]
[1763434206932,1.396604,3039.1,3038.8,2.31947866]
[1763434207152,1.396604,3039.1,3038.4,2.89729248]
[1763434207153,0.405504,3038.7,3038.4,2.32020847]
[1763434207332,0.900004,3038.5,3038.4,0.001]
[1763434207661,0.405504,3038.4,3038.1,0.001]
[1763434207958,7.61005464,3038.2,3038.1,0.001]
[1763434208332,7.20455064,3038.2,3038.1,0.001]
[1763434208540,8.10165464,3038.2,3038.1,0.001]
[1763434208989,1.31249664,3038.1,3038.0,0.001]
[1763434209134,2.15279664,3038.1,3038.0,0.001]
[1763434211231,1.74729264,3038.1,3038.0,0.001]
[1763434211824,2.15279664,3038.1,3038.0,0.001]
[1763434212420,0.405504,3037.7,3037.4,0.001]
[1763434212656,7.86675464,3037.5,3037.4,0.001]
[1763434213049,8.35835464,3037.5,3037.4,0.001]
[1763434213475,10.557851,3038.1,3037.4,0.001]
[1763434213650,10.557851,3038.1,3037.4,0.9508]
[1763434214178,0.90699264,3038.0,3037.5,0.4857]
[1763434216394,0.90699264,3038.0,3037.6,0.4857]
[1763434216692,0.90699264,3038.0,3037.4,0.001]
[1763434216991,0.90699264,3038.0,3037.4,0.33929925]
[1763434217178,0.90699264,3038.0,3037.6,2.31212547]
[1763434217488,0.90699264,3038.0,3037.7,2.31212547]
[1763434217863,0.90699264,3038.0,3037.6,2.31212547]
[1763434218200,0.90699264,3038.0,3037.7,2.31212547]
[1763434218354,0.90699264,3038.0,3037.8,0.23121255]
[1763434218556,10.90699264,3038.0,3037.7,2.31212547]
[1763434218872,11.39859264,3038.0,3037.7,2.31212547]
[1763434219065,0.2671,3037.8,3037.6,2.31212547]
[1763434219365,0.53054684,3037.9,3037.6,2.31212547]
[1763434219366,10.90699264,3038.0,3037.6,2.31212547]
[1763434219560,0.4916,3037.9,3037.6,2.31212547]
[1763434219760,10.90699264,3038.0,3037.7,2.31212547]
[1763434220783,10.90699264,3038.0,3037.6,0.23131255]
[1763434221099,10.90699264,3038.0,3037.4,0.4867]
[1763434221303,10.72837078,3038.0,3037.4,0.4867]
[1763434221679,10.72837078,3038.0,3037.4,0.001]
[1763434222556,10.72837078,3038.0,3037.4,3.39559248]
[1763434222755,10.72837078,3038.0,3037.4,0.4993]
[1763434222989,10.72837078,3038.0,3037.5,0.33955925]
[1763434223494,10.72837078,3038.0,3037.4,2.89729248]
[1763434223788,10.72837078,3038.0,3037.5,2.89629248]
[1763434225453,11.20427078,3038.0,3037.5,2.89629248]
[1763434225655,0.4759,3037.9,3037.5,2.89629248]
[1763434226057,10.72837078,3038.0,3037.5,2.89629248]
[1763434226257,11.20427078,3038.0,3037.6,0.28972925]
[1763434226707,11.20427078,3038.0,3037.5,2.89629248]
[1763434226708,0.4759,3037.9,3037.5,2.89629248]
[1763434226867,10.72837078,3038.0,3037.5,2.89629248]
[1763434227070,10.72837078,3038.0,3037.9,0.4534]
[1763434227071,10.0,3038.0,3037.9,0.4534]
[1763434227477,10.557851,3038.1,3038.0,0.858904]
[1763434227478,2.33979489,3038.1,3038.0,0.858904]
[1763434227679,1.83979489,3038.1,3038.0,1.89731934]
[1763434228078,1.83979489,3038.1,3038.0,0.9517]
[1763434228279,1.83979489,3038.1,3038.0,4.52749595]
[1763434228474,1.83979489,3038.1,3038.0,5.02579595]
[1763434228680,1.83979489,3038.1,3038.0,0.9517]
[1763434229203,1.83979489,3038.1,3038.0,5.02579595]
[1763434229512,1.83979489,3038.1,3038.0,5.52837555]
[1763434230012,1.83979489,3038.1,3038.0,1.4542796]
[1763434230216,1.83979489,3038.1,3038.0,0.9517]
[1763434232794,0.002,3039.0,3038.1,0.405504]
[1763434232996,0.002,3039.0,3038.9,0.4534]
[1763434233419,0.002,3039.0,3038.7,4.06953792]
[1763434233596,0.002,3039.0,3038.9,2.9049609]
[1763434233917,0.002,3039.0,3038.9,3.60241078]
[1763434234086,0.002,3039.0,3038.9,2.9049609]
[1763434234684,0.4916,3039.0,3038.8,2.9049609]
[1763434234911,0.3604333,3038.9,3038.2,2.9049609]
[1763434235101,0.3193,3038.9,3038.0,2.9049609]
[1763434235286,0.3193,3038.9,3038.1,0.29049609]
[1763434235287,0.4759,3038.8,3038.1,0.29049609]
[1763434236087,0.1854,3038.9,3038.1,3.19545699]
[1763434236318,0.1854,3038.9,3038.2,2.9049609]
[1763434236731,0.1854,3038.9,3038.1,3.19545699]
[1763434237031,0.1854,3038.9,3038.2,3.2245066]
[1763434237202,0.1854,3038.9,3038.4,2.9049609]
[1763434238027,0.1854,3038.9,3038.3,2.9049609]
[1763434238242,0.6388,3038.9,3038.2,3.2245066]
[1763434238542,0.002,3038.8,3038.2,3.2245066]
[1763434239127,0.4554,3038.8,3038.2,3.2245066]
[1763434241044,0.4554,3038.8,3038.2,2.9049609]
[1763434241045,0.4699,3038.3,3038.2,2.9049609]
[1763434241253,0.4699,3038.3,3038.0,2.9049609]
[1763434241409,0.49454278,3038.2,3037.9,2.9049609]
[1763434241609,0.49454278,3038.2,3037.8,2.9049609]
[1763434242028,0.4699,3037.9,3037.6,2.9059609]
[1763434242349,0.751404,3037.7,3037.6,0.001]
[1763434242706,1.204804,3037.7,3037.6,0.001]
[1763434242934,1.36838783,3037.7,3037.6,0.001]
[1763434243129,0.7993,3037.7,3037.6,0.001]
[1763434243334,0.4534,3038.2,3037.6,0.001]
[1763434243534,0.858904,3038.2,3037.6,0.001]
[1763434243764,0.4699,3037.7,3037.6,0.001]
[1763434244171,0.9233,3037.7,3037.6,0.001]
[1763434244754,0.6521,3038.3,3037.6,0.4607]
[1763434244933,0.1987,3038.3,3037.7,2.9049609]
[1763434245136,0.1987,3038.3,3037.8,0.33656609]
[1763434245580,0.6521,3038.3,3037.8,0.33656609]
[1763434245778,0.4699,3037.9,3037.6,2.9059609]
[1763434245990,0.4699,3037.7,3037.6,0.001]
[1763434246354,0.9233,3037.7,3037.6,0.001]
[1763434247778,1.328804,3037.7,3037.6,0.001]
[1763434248368,0.9233,3037.7,3037.6,0.001]
[1763434250978,1.183204,3036.5,3036.4,0.001]
[1763434252585,1.183204,3036.5,3036.4,0.00099976]
[1763434252794,0.7777,3036.5,3036.4,0.00099976]
[1763434253977,1.183204,3036.5,3036.4,0.00099976]
[1763434255168,1.22436981,3036.5,3036.4,0.00099976]
[1763434255369,1.183204,3036.5,3036.4,0.00099976]
[1763434255565,1.22436981,3036.5,3036.4,0.00099976]
[1763434255764,1.22436981,3036.5,3036.0,0.001]
[1763434255969,8.14895151,3036.1,3036.0,0.001]
[1763434256357,0.3258,3035.8,3035.5,0.001]
[1763434256603,0.3258,3035.8,3034.0,0.6107]
[1763434256604,0.405504,3035.4,3034.0,0.1298]
[1763434256752,0.405504,3035.4,3033.5,3.3858609]
[1763434256753,1.31249664,3034.8,3033.5,0.4809]
[1763434257292,0.1987,3034.7,3033.5,0.4809]
[1763434257589,0.405504,3035.3,3033.6,0.01668665]
[1763434257994,0.405504,3035.3,3033.7,0.4809]
[1763434258205,0.90699264,3034.9,3033.7,0.4809]
[1763434258404,0.90699264,3034.9,3033.8,0.01668397]
[1763434258610,0.405504,3035.1,3033.7,0.4809]
[1763434258908,0.405504,3035.3,3033.7,0.4809]
[1763434259096,0.858904,3035.3,3033.7,0.4809]
[1763434259404,1.31249664,3034.9,3033.0,0.1298]
[1763434259608,0.04118887,3034.8,3033.4,0.4809]
[1763434259807,0.23988887,3034.8,3033.4,0.4809]
[1763434260010,0.1987,3034.8,3033.4,0.4809]
[1763434260508,0.1987,3034.8,3033.0,0.1298]
[1763434260509,1.31249664,3034.4,3033.0,0.1298]
[1763434260711,0.90699264,3033.9,3033.0,0.1298]
[1763434260919,0.90699264,3033.9,3033.1,0.4809]
[1763434261277,0.90010645,3033.8,3032.7,0.1338]
[1763434261516,0.90699264,3033.9,3032.8,0.4809]
[1763434261823,0.49460245,3033.8,3032.7,0.1338]
[1763434262183,0.405504,3033.7,3032.7,0.1338]
[1763434262498,0.405504,3034.4,3032.8,0.4809]
[1763434262701,0.4534,3034.5,3032.9,0.01670133]
[1763434263113,0.90699264,3034.1,3032.7,0.1338]
[1763434263413,0.90699264,3034.1,3032.8,0.4809]
[1763434263718,0.4534,3034.5,3032.9,0.01670899]
[1763434264225,0.4534,3034.5,3033.0,0.4809]
[1763434264401,0.4534,3034.5,3032.7,0.1338]
[1763434264402,0.90699264,3034.0,3032.7,0.1338]
[1763434264580,0.90699264,3034.0,3032.8,0.4809]
[1763434264780,0.4534,3034.3,3032.9,0.01671338]
[1763434265080,0.4534,3034.3,3032.8,0.49761338]
[1763434265281,0.405504,3034.0,3032.8,0.4809]
[1763434265479,0.4534,3033.9,3032.8,0.4809]
[1763434265678,0.4534,3033.9,3032.4,0.1338]
[1763434265883,0.90699264,3033.5,3032.4,0.1338]
[1763434266215,0.90699264,3033.5,3032.4,0.6221]
[1763434266620,1.35819264,3034.1,3032.5,0.4883]
[1763434266810,0.4512,3034.1,3033.4,0.1298]
[1763434267187,0.4512,3034.1,3033.1,0.1298]
[1763434267386,0.04119973,3034.0,3033.1,0.1298]
[1763434268036,0.405504,3034.4,3033.2,0.4883]
[1763434268326,0.856704,3034.4,3033.2,0.4883]
[1763434269233,0.856704,3034.4,3033.3,0.0166948]
[1763434269530,0.4512,3034.3,3033.2,0.4883]
[1763434269823,0.44670102,3034.2,3033.1,0.1298]
[1763434270001,2.03908223,3034.2,3033.1,0.1298]
[1763434270207,0.405504,3034.0,3032.4,0.1338]
[1763434270402,0.04120109,3033.9,3032.4,0.6221]
[1763434270603,1.31249664,3034.5,3032.4,0.6221]
[1763434270806,0.90699264,3034.5,3032.5,0.50500679]
[1763434271004,1.35819264,3034.5,3032.5,0.50500679]
[1763434271214,0.90699264,3034.5,3032.5,0.4883]
[1763434271414,0.8978983,3034.4,3032.5,0.4883]
[1763434271819,0.4512,3034.3,3032.5,0.4883]
[1763434272832,0.90699264,3034.5,3032.6,0.01670732]
[1763434273053,0.90699264,3034.5,3032.5,0.4883]
[1763434273054,0.90699264,3034.5,3032.5,0.50500462]
[1763434273248,0.90699264,3034.5,3032.6,0.4883]
[1763434273249,0.90699264,3033.9,3032.6,0.4883]
[1763434273435,0.405504,3034.1,3032.7,0.01671002]
[1763434273917,0.405504,3034.1,3032.8,0.4883]
[1763434274347,0.4512,3034.0,3032.5,0.4883]